fUSD/lending_fUSD_20250814
["ID","MTS","AMOUNT","RATE_DAILY","PERIOD"]
[379161443,1755169833034,-200.0,0.00021918,2]
[379161445,1755169833043,-181.08010149,0.00021918,2]
[379161447,1755169833053,-237.71,0.00022285,2]
[379161449,1755169833062,-391.7,0.00022295,2]
[379161451,1755169833072,-5000.0,0.00022396,2]
[379161453,1755169833082,-1468.75,0.00022417,2]
[379161455,1755169833091,-187.78006525,0.00022466,2]
[379161457,1755169833100,-1000.0,0.00022507,2]
[379161459,1755169833110,-222.35500871,0.000226,2]
[379161461,1755169833119,-267.39,0.00022678,2]
[379161463,1755169833128,-206.98811136,0.0002268,2]
[379161465,1755169833137,-905.54,0.00022774,2]
[379161467,1755169833147,-167.29,0.00022776,2]
[379161469,1755169833156,-167.29,0.00022788,2]
[379161471,1755169833166,-1000.0,0.00022795,2]
[379161473,1755169833175,-167.29,0.000228,2]
[379161475,1755169833185,-167.29,0.00022812,2]
[379161477,1755169833194,-167.29,0.00022824,2]
[379161478,1755169833205,-167.29,0.00022836,2]
[379161481,1755169833215,-167.29,0.00022848,2]
[379161482,1755169833224,-167.29,0.0002286,2]
[379161484,1755169833233,-167.29,0.00022872,2]
[379161487,1755169833243,-173.75,0.00022882,2]
[379161489,1755169833253,-167.29,0.00022884,2]
[379161490,1755169833262,-167.29,0.00022896,2]
[379161492,1755169833273,-167.29,0.00022908,2]
[379161494,1755169833283,-167.29,0.0002292,2]
[379161496,1755169833292,-167.29,0.00022932,2]
[379161498,1755169833301,-167.29,0.00022944,2]
[379161500,1755169833311,-167.29,0.00022956,2]
[379161502,1755169833321,-167.29,0.00022968,2]
[379161504,1755169833330,-167.29,0.0002298,2]
[379161506,1755169833339,-167.29,0.00022992,2]
[379161508,1755169833349,-1000.0,0.00023,7]
[379161510,1755169833358,-167.29,0.00023004,2]
[379161512,1755169833368,-194.72792766,0.00023014,2]
[379161514,1755169833379,-408.11,0.00023562,7]
[379161516,1755169833389,-201.93286099,0.00023562,2]
[379161518,1755169833398,-456.11,0.000236,2]
[379161520,1755169833408,-170.0,0.00023639,7]
[379161522,1755169833418,-150.0,0.00023639,2]
[379161524,1755169833427,-910.65,0.00023726,2]
[379161526,1755169833437,-150.72,0.00023872,2]
[379161528,1755169833448,-207.4,0.00023984,2]
[379161530,1755169833457,-209.40437684,0.0002411,2]
[379161532,1755169833468,-164.81,0.00024262,2]
[379161534,1755169833477,-150.0,0.00024391,2]
[379161536,1755169833487,-499.03,0.00024424,2]
[379161538,1755169833496,-1843.89178041,0.00024439,2]
[379161540,1755169833505,-21022.88,0.00024518,2]
[379161542,1755169833515,-910.65,0.00024616,2]
[379161544,1755169833526,-200.0,0.00024657,2]
[379161546,1755169833535,-2000.0,0.00024658,15]
[379161548,1755169833544,-151.0,0.00024658,7]
[379161550,1755169833554,-217.15233878,0.00024658,2]
[379161552,1755169833563,-732.95,0.00024685,30]
[379161554,1755169833572,-562.89,0.00024813,2]
[379161556,1755169833582,-126.47907465,0.000249,7]
[379161558,1755169833591,-151.0,0.000249,7]
[379161560,1755169833601,-1922.897637,0.000249,7]
[379161562,1755169833610,-1922.897637,0.000249,7]
[379161564,1755169833619,-287.233139,0.000249,7]
[379161565,1755169833629,-287.233139,0.000249,7]
[379161567,1755169833638,-151.0,0.000249,7]
[379161569,1755169833648,-151.0,0.000249,7]
[379161571,1755169833657,-151.0,0.000249,7]
[379161573,1755169833667,-151.0,0.000249,7]
[379161575,1755169833676,-2284.106735,0.000249,7]
[379161577,1755169833686,-2284.106735,0.000249,7]
[379161579,1755169833695,-1990.655451,0.000249,7]
[379161581,1755169833705,-151.0,0.000249,7]
[379161583,1755169833714,-1990.655451,0.000249,7]
[379161585,1755169833724,-340.268615,0.000249,7]
[379161587,1755169833733,-340.268615,0.000249,7]
[379161589,1755169833742,-151.0,0.000249,7]
[379161591,1755169833752,-196.049567,0.000249,7]
[379161593,1755169833761,-196.049567,0.000249,7]
[379161595,1755169833771,-150.0,0.000249,7]
[379161597,1755169833781,-150.0,0.000249,7]
[379161599,1755169833790,-500.0,0.000249,7]
[379161601,1755169833800,-150.0,0.000249,2]
[379161603,1755169833812,-500.0,0.000249,7]
[379161605,1755169833821,-500.0,0.000249,7]
[379161607,1755169833831,-173.983887,0.000249,7]
[379161609,1755169833841,-173.983887,0.000249,7]
[379161611,1755169833851,-231.478503,0.000249,7]
[379161613,1755169833860,-231.478503,0.000249,7]
[379161615,1755169833870,-458.13769775,0.000249,7]
[379161617,1755169833879,-211.86673127,0.000249,7]
[379161619,1755169833889,-500.0,0.00024932,2]
[379161621,1755169833898,-500.0,0.00024932,2]
[379161623,1755169833908,-500.0,0.00024932,2]
[379161625,1755169833918,-609.18,0.00025007,2]
[379161627,1755169833928,-150.0,0.00025174,7]
[379161629,1755169833938,-500.0,0.00025174,7]
[379161631,1755169833948,-150.0,0.00025174,2]
[379161633,1755169833957,-500.0,0.00025174,7]
[379161635,1755169833968,-500.0,0.00025174,7]
[379161637,1755169833977,-225.18697532,0.00025206,2]
[379161639,1755169833986,-164.81,0.00025263,2]
[379161641,1755169833996,-211.86673127,0.00025334,2]
[379161643,1755169834006,-150.0,0.00025448,7]
[379161645,1755169834016,-500.0,0.00025448,7]
[379161647,1755169834025,-173.67624752,0.00025448,2]
[379161648,1755169834035,-500.0,0.00025448,7]
[379161651,1755169834045,-500.0,0.00025448,7]
[379161653,1755169834054,-910.65,0.00025505,2]
[379161654,1755169834064,-1000.0,0.00025644,2]
[379161656,1755169834073,-391.7,0.00025698,2]
[379161658,1755169834083,-297.63449272,0.00025722,7]
[379161660,1755169834093,-500.0,0.00025722,7]
[379161662,1755169834102,-309.90090545,0.00025722,7]
[379161664,1755169834111,-500.0,0.00025722,7]
[379161666,1755169834121,-173.75,0.00025743,2]
[379161668,1755169834132,-233.51889341,0.00025754,2]
[379161670,1755169834141,-250.0,0.00025784,2]
[379161672,1755169834150,-500.0,0.00025996,7]
[379161674,1755169834159,-500.0,0.00025996,7]
[379161676,1755169834169,-562.89,0.00026054,2]
[379161678,1755169834179,-2302.3,0.00026087,2]
[379161680,1755169834188,-164.81,0.00026265,2]
[379161682,1755169834197,-500.0,0.0002627,7]
[379161684,1755169834207,-174.58642028,0.0002627,7]
[379161686,1755169834216,-166.28727331,0.00026302,2]
[379161688,1755169834225,-500.0,0.00026325,2]
[379161690,1755169834235,-500.0,0.00026325,2]
[379161692,1755169834244,-500.0,0.00026325,2]
[379161694,1755169834254,-500.0,0.00026325,2]
[379161696,1755169834264,-500.0,0.00026325,2]
[379161698,1755169834275,-500.0,0.00026325,2]
[379161700,1755169834284,-500.0,0.00026325,2]
[379161702,1755169834293,-501.20831841,0.00026325,2]
[379161704,1755169834303,-500.0,0.00026325,2]
[379161706,1755169834313,-500.0,0.00026325,2]
[379161708,1755169834322,-585.08831709,0.00026325,2]
[379161710,1755169834331,-910.65,0.00026395,2]
[379161712,1755169834341,-500.0,0.00026544,7]
[379161714,1755169834350,-269.31,0.00026676,2]
[379161716,1755169834360,-292.4319358,0.00026723,2]
[379161717,1755169834370,-500.0,0.00026753,2]
[379161719,1755169834381,-500.0,0.00026818,7]
[379161721,1755169834391,-1000.0,0.00026873,2]
[379161722,1755169834400,-1000.0,0.00026873,2]
[379161723,1755169834410,-185.7,0.00026884,7]
[379161724,1755169834419,-13488.36992401,0.0002694,2]
[379161725,1755169834429,-500.0,0.00027092,7]
[379161726,1755169834439,-507.0,0.00027137,2]
[379161727,1755169834449,-1843.89178041,0.00027208,2]
[379161728,1755169834460,-164.81,0.00027266,2]
[379161729,1755169834469,-910.65,0.00027285,2]
[379161730,1755169834478,-562.89,0.00027295,2]
[379161731,1755169834487,-469.92692493,0.00027366,7]
[379161732,1755169834497,-200.0,0.00027389,2]
[379161733,1755169834506,-200.0,0.00027396,2]
[379161734,1755169834515,-150.0,0.00027397,2]
[379161735,1755169834527,-1000.0,0.00027397,7]
[379161736,1755169834536,-1000.0,0.00027397,7]
[379161737,1755169834545,-198.97,0.00027397,80]
[379161738,1755169834554,-1500.0,0.00027421,5]
[379161739,1755169834564,-444.27748332,0.00027421,5]
[379161741,1755169834573,-227.08,0.00027473,2]
[379161743,1755169834582,-7660.28,0.0002762,2]
[379161745,1755169834592,-13488.36992395,0.00027908,2]
[379161747,1755169834601,-300.0,0.0002791,2]
[379161749,1755169834610,-200.0,0.0002791,2]
[379161751,1755169834619,-151.0,0.0002791,2]
[379161753,1755169834628,-151.0,0.0002791,2]
[379161755,1755169834638,-200.0,0.0002791,2]
[379161757,1755169834647,-151.0,0.0002791,2]
[379161759,1755169834657,-200.0,0.0002791,2]
[379161761,1755169834666,-200.0,0.0002791,2]
[379161763,1755169834675,-500.0,0.0002791,2]
[379161765,1755169834684,-9274.81107495,0.0002791,2]
[379161767,1755169834693,-151.0,0.0002791,2]
[379161769,1755169834702,-200.0,0.0002791,2]
[379161771,1755169834712,-152.68018984,0.0002791,2]
[379161773,1755169834721,-500.0,0.0002791,2]
[379161775,1755169834730,-160.0,0.0002791,2]
[379161777,1755169834740,-200.0,0.0002791,2]
[379161779,1755169834749,-639.36772098,0.0002791,2]
[379161781,1755169834758,-200.0,0.0002791,2]
[379161813,1755169835064,-200.0,0.0002791,2]
[379161815,1755169835074,-200.0,0.0002791,2]
[379161817,1755169835083,-200.0,0.0002791,2]
[379161819,1755169835093,-200.0,0.0002791,2]
[379161821,1755169835103,-200.0,0.0002791,2]
[379161823,1755169835112,-200.0,0.0002791,2]
[379161825,1755169835123,-200.0,0.0002791,2]
[379161827,1755169835132,-200.0,0.0002791,2]
[379161829,1755169835141,-200.0,0.0002791,2]
[379161831,1755169835151,-200.0,0.0002791,2]
[379161833,1755169835161,-1000.0,0.0002791,2]
[379161835,1755169835171,-200.0,0.0002791,2]
[379161837,1755169835182,-1000.0,0.0002791,2]
[379161839,1755169835192,-200.0,0.0002791,2]
[379161841,1755169835201,-1000.0,0.0002791,2]
[379161843,1755169835211,-200.0,0.0002791,2]
[379161845,1755169835220,-1000.0,0.0002791,2]
[379161847,1755169835230,-1000.0,0.0002791,2]
[379161849,1755169835239,-1000.0,0.0002791,2]
[379161851,1755169835248,-277.35679052,0.0002791,2]
[379161853,1755169835257,-1000.0,0.0002791,2]
[379161855,1755169835267,-1000.0,0.0002791,2]
[379161857,1755169835276,-1000.0,0.0002791,2]
[379161859,1755169835286,-1000.0,0.0002791,2]
[379161861,1755169835295,-1000.0,0.0002791,2]
[379161863,1755169835305,-1000.0,0.0002791,2]
[379161865,1755169835314,-1000.0,0.0002791,2]
[379161867,1755169835323,-1000.0,0.0002791,2]
[379161869,1755169835332,-1000.0,0.0002791,2]
[379161871,1755169835342,-1000.0,0.0002791,2]
[379161873,1755169835352,-1000.0,0.0002791,2]
[379161875,1755169835361,-1000.0,0.0002791,2]
[379161877,1755169835372,-1000.0,0.0002791,2]
[379161879,1755169835382,-290.42235601,0.0002791,2]
[379161881,1755169835391,-1000.0,0.0002791,2]
[379161883,1755169835401,-1000.0,0.0002791,2]
[379161885,1755169835411,-1000.0,0.0002791,2]
[379161887,1755169835420,-1386.78395259,0.0002791,2]
[379161889,1755169835430,-152.52655812,0.0002791,2]
[379161891,1755169835439,-1000.0,0.0002791,2]
[379161893,1755169835449,-1000.0,0.0002791,2]
[379161895,1755169835459,-1000.0,0.0002791,2]
[379161897,1755169835468,-1000.0,0.0002791,2]
[379161899,1755169835478,-294.71010829,0.0002791,2]
[379161901,1755169835487,-1000.0,0.0002791,2]
[379161902,1755169835496,-1000.0,0.0002791,2]
[379161904,1755169835506,-1000.0,0.0002791,2]
[379161907,1755169835515,-1000.0,0.0002791,2]
[379161909,1755169835526,-1000.0,0.0002791,2]
[379161911,1755169835536,-1000.0,0.0002791,2]
[379161913,1755169835545,-1000.0,0.0002791,2]
[379161915,1755169835555,-500.0,0.0002791,2]
[379161917,1755169835565,-500.0,0.0002791,2]
[379161918,1755169835574,-600.0,0.0002791,2]
[379161920,1755169835583,-500.0,0.0002791,2]
[379161922,1755169835593,-500.0,0.0002791,2]
[379161924,1755169835602,-500.0,0.0002791,2]
[379161926,1755169835611,-500.0,0.0002791,2]
[379161928,1755169835620,-500.0,0.0002791,2]
[379161930,1755169835630,-1000.0,0.0002791,2]
[379161932,1755169835640,-500.0,0.0002791,2]
[379161934,1755169835649,-500.0,0.0002791,2]
[379161936,1755169835658,-1000.0,0.0002791,2]
[379161938,1755169835667,-500.0,0.0002791,2]
[379161940,1755169835677,-1006.75829622,0.0002791,2]
[379161943,1755169835686,-500.0,0.0002791,2]
[379161945,1755169835696,-250.0,0.0002791,2]
[379161947,1755169835706,-250.0,0.0002791,2]
[379161949,1755169835716,-152.86643145,0.0002791,2]
[379161951,1755169835725,-500.0,0.0002791,2]
[379161953,1755169835734,-250.0,0.0002791,2]
[379161955,1755169835744,-250.0,0.0002791,2]
[379161957,1755169835753,-500.0,0.0002791,2]
[379161959,1755169835763,-500.0,0.0002791,2]
[379161961,1755169835773,-250.0,0.0002791,2]
[379161963,1755169835783,-500.0,0.0002791,2]
[379161965,1755169835792,-250.0,0.0002791,2]
[379161967,1755169835805,-500.0,0.0002791,2]
[379161968,1755169835815,-250.0,0.0002791,2]
[379161971,1755169835826,-500.0,0.0002791,2]
[379161973,1755169835836,-250.0,0.0002791,2]
[379161974,1755169835846,-250.0,0.0002791,2]
[379161977,1755169835856,-500.0,0.0002791,2]
[379161978,1755169835865,-250.0,0.0002791,2]
[379161980,1755169835875,-500.0,0.0002791,2]
[379161982,1755169835885,-250.0,0.0002791,2]
[379161984,1755169835895,-500.0,0.0002791,2]
[379161987,1755169835906,-500.0,0.0002791,2]
[379161989,1755169835915,-500.0,0.0002791,2]
[379161991,1755169835925,-500.0,0.0002791,2]
[379161993,1755169835935,-500.0,0.0002791,2]
[379161995,1755169835945,-151.0,0.0002791,2]
[379161997,1755169835954,-500.0,0.0002791,2]
[379161999,1755169835964,-500.0,0.0002791,2]
[379162001,1755169835973,-500.0,0.0002791,2]
[379162003,1755169835983,-500.0,0.0002791,2]
[379162004,1755169836002,-500.0,0.0002791,2]
[379162007,1755169836021,-500.0,0.0002791,2]
[379162008,1755169836031,-500.0,0.0002791,2]
[379162010,1755169836040,-500.0,0.0002791,2]
[379162012,1755169836050,-500.0,0.0002791,2]
[379162014,1755169836059,-500.0,0.0002791,2]
[379162016,1755169836069,-500.0,0.0002791,2]
[379162018,1755169836078,-500.0,0.0002791,2]
[379162020,1755169836088,-500.0,0.0002791,2]
[379162022,1755169836097,-500.0,0.0002791,2]
[379162025,1755169836107,-500.0,0.0002791,2]
[379162027,1755169836116,-500.0,0.0002791,2]
[379162029,1755169836126,-500.0,0.0002791,2]
[379162031,1755169836136,-500.0,0.0002791,2]
[379162033,1755169836145,-594.87373683,0.0002791,2]
[379162035,1755169836154,-227.08713095,0.00027948,2]
[379162037,1755169836163,-9617.97908473,0.00027965,2]
[379162039,1755169836173,-639.62609718,0.00027969,5]
[379162041,1755169836182,-6790.60966117,0.00027975,2]
[379162043,1755169836192,-9973.84431086,0.0002802,2]
[379162045,1755169836202,-10342.87655036,0.00028075,2]
[379162047,1755169836212,-10725.56298273,0.0002813,2]
[379162049,1755169836223,-5340.25393092,0.00028175,2]
[379162050,1755169836233,-11122.40881309,0.00028185,2]
[379162053,1755169836243,-10680.5078618,0.0002823,2]
[379162055,1755169836256,-11533.93793917,0.0002824,2]
[379162057,1755169836267,-164.81,0.00028267,2]
[379162059,1755169836278,-5340.25393092,0.00028285,2]
[379162061,1755169836288,-11960.69364292,0.00028295,2]
[379162063,1755169836299,-162.26013601,0.00028305,2]
[379162064,1755169836309,-507.0,0.00028338,3]
[379162066,1755169836320,-5340.25393092,0.0002834,2]
[379162068,1755169836330,-12403.23930771,0.0002835,2]
[379162071,1755169836340,-5340.25393092,0.00028395,2]
[379162072,1755169836350,-12862.1591621,0.00028405,2]
[379162075,1755169836361,-5340.25393092,0.0002845,2]
[379162077,1755169836374,-600.0,0.00028458,2]
[379162079,1755169836383,-151.0,0.00028458,2]
[379162081,1755169836393,-13338.05905109,0.0002846,2]
[379162083,1755169836403,-5340.25393092,0.00028463,2]
[379162085,1755169836414,-500.31273927,0.00028473,5]
[379162087,1755169836422,-185.7,0.00028475,30]
[379162088,1755169836438,-1000.0,0.00028494,2]
[379162090,1755169836457,-562.89,0.00028535,2]
[379162092,1755169836472,-173.75,0.00028603,2]
[379162094,1755169836481,-163.18073899,0.0002863,2]
[379162096,1755169836490,-150.0,0.00028767,2]
[379162098,1755169836500,-4975.90109318,0.00028828,2]
[379162101,1755169836517,-502.36000091,0.00028828,2]
[379162104,1755169836535,-598.35297443,0.00028828,2]
[379162106,1755169836546,-713.99559256,0.00028828,2]
[379162108,1755169836556,-10680.5078618,0.00028866,2]
[379162110,1755169836565,-13488.36992395,0.00028876,2]
[379162112,1755169836574,-5340.25393092,0.0002889,2]
[379162114,1755169836584,-600.0,0.00029006,2]
[379162116,1755169836593,-151.0,0.00029006,2]
[379162118,1755169836603,-299.99,0.00029009,12]
[379162119,1755169836611,-150.99,0.00029009,2]
[379162120,1755169836620,-137.70183969,0.00029009,2]
[379162121,1755169836631,-862.28816031,0.00029009,2]
[379162122,1755169836640,-12.44733916,0.00029009,2]
[379162184,1755169840090,-244.0397822,0.00019999,2]
[379162185,1755169840100,-302.77985858,0.00019999,2]
[379162186,1755169840110,-500.0,0.00019999,2]
[379162187,1755169840119,-259.61503909,0.00019999,2]
[379162188,1755169840129,-500.0,0.00019999,2]
[379162189,1755169840140,-500.0,0.00019999,2]
[379162190,1755169840149,-201.27247072,0.00019999,2]
[379162191,1755169840160,-151.0,0.00021685,2]
[379162192,1755169840170,-502.24454179,0.00026325,2]
[379162193,1755169840180,-138.54266084,0.00029009,2]
[379162194,1755169840189,-1711.60736548,0.00029009,2]
[379162195,1755169840209,-8288.38263452,0.00029009,2]
[379162196,1755169840219,-8183.57,0.00029009,2]
[379162197,1755169840228,-752.67007,0.000291,2]
[379162198,1755169840238,-391.7,0.00029101,2]
[379162199,1755169840247,-5340.25393092,0.00029263,2]
[379162200,1755169840256,-311.1,0.00029279,2]
[379162201,1755169840266,-160.0,0.00029279,2]
[379162202,1755169840277,-287.61899177,0.00029279,2]
[379162203,1755169840286,-5340.25393092,0.00029537,2]
[379162204,1755169840296,-507.0,0.0002954,4]
[379162205,1755169840306,-600.0,0.00029554,2]
[379162206,1755169840315,-151.0,0.00029554,2]
[379162207,1755169840325,-6790.60966108,0.00029681,2]
[379162208,1755169840334,-562.89,0.00029776,2]
[379162209,1755169840344,-10680.5078618,0.00029795,2]
[379162210,1755169840353,-16020.7617928,0.00029805,2]
[379162211,1755169840363,-5340.25393092,0.00029834,2]
[379162212,1755169840374,-13488.36992395,0.00029844,2]
[379162213,1755169840384,-5340.25393092,0.00029957,2]
[379162214,1755169840393,-1843.89178041,0.00029977,2]
[379162215,1755169840403,-5340.25393092,0.0002999,2]
[379162216,1755169840413,-1903.0,0.00029999,3]
[379162217,1755169840422,-600.0,0.00030102,2]
[379162218,1755169840431,-151.0,0.00030102,2]
[379162219,1755169840441,-10044.4809612,0.0003012,2]
[379162220,1755169840451,-5340.25393092,0.0003013,2]
[379162221,1755169840461,-200.0,0.00030135,2]
[379162222,1755169840472,-150.0,0.00030136,2]
[379162223,1755169840481,-400.0,0.00030137,120]
[379162224,1755169840490,-185.7,0.00030137,30]
[379162225,1755169840501,-400.0,0.00030138,120]
[379162226,1755169840511,-400.0,0.00030139,120]
[379162227,1755169840521,-1903.0,0.00030273,3]
[379162228,1755169840532,-5340.25393092,0.00030389,2]
[379162229,1755169840542,-10044.4809612,0.00030527,2]
[379162230,1755169840552,-6790.60966108,0.00030534,2]
[379162231,1755169840561,-5340.25393092,0.00030537,2]
[379162232,1755169840570,-1903.0,0.00030547,3]
[379162233,1755169840579,-5340.25393092,0.00030638,2]
[379162234,1755169840589,-322.6107,0.00030648,2]
[379162235,1755169840598,-160.0,0.00030648,2]
[379162236,1755169840607,-298.26089446,0.00030648,2]
[379162237,1755169840616,-1438.09495884,0.00030649,2]
[379162238,1755169840628,-600.0,0.0003065,2]
[379162239,1755169840637,-151.0,0.0003065,2]
[379162240,1755169840646,-507.0,0.00030741,5]
[379162241,1755169840655,-5340.25393092,0.00030802,2]
[379162242,1755169840664,-10044.4809612,0.00030802,2]
[379162243,1755169840674,-13488.36992395,0.00030812,2]
[379162244,1755169840683,-1903.0,0.00030821,3]
[379162245,1755169840692,-732.95,0.00030909,30]
[379162246,1755169840702,-5340.25393092,0.00031075,2]
[379162247,1755169840711,-10044.4809612,0.00031085,2]
[379162248,1755169840720,-1903.0,0.00031095,3]
[379162249,1755169840731,-5340.25393092,0.00031182,2]
[379162250,1755169840741,-600.0,0.00031198,2]
[379162251,1755169840750,-151.0,0.00031198,2]
[379162252,1755169840759,-1000.0,0.00031343,2]
[379162253,1755169840769,-5340.25393092,0.00031359,2]
[379162254,1755169840780,-1903.0,0.00031369,3]
[379162255,1755169840789,-10044.4809612,0.00031377,2]
[379162256,1755169840799,-1233.70485471,0.00031387,2]
[379162257,1755169840823,-5556.90480637,0.00031387,2]
[379162258,1755169840832,-173.75,0.00031463,2]
[379162259,1755169840842,-150.0,0.00031506,2]
[379162260,1755169840852,-1903.0,0.00031643,3]
[379162261,1755169840862,-185.7,0.00031658,30]
[379162262,1755169840871,-600.0,0.00031746,2]
[379162263,1755169840881,-151.0,0.00031746,2]
[379162264,1755169840890,-10044.4809612,0.0003176,2]
[379162265,1755169840900,-5340.25393092,0.00031768,2]
[379162266,1755169840909,-10680.5078618,0.00031771,2]
[379162267,1755169840919,-13488.36992395,0.00031781,2]
[379162268,1755169840928,-905.54,0.00031883,2]
[379162269,1755169840938,-5340.25393092,0.00031887,2]
[379162270,1755169840947,-10044.4809612,0.0003189,2]
[379162271,1755169840956,-1903.0,0.00031917,3]
[379162272,1755169840966,-507.0,0.00031943,7]
[379162273,1755169840975,-458.13769775,0.00032,3]
[379162274,1755169840985,-211.86673127,0.00032,3]
[379162275,1755169840994,-334.5472959,0.00032017,2]
[379162276,1755169841003,-160.0,0.00032017,2]
[379162277,1755169841013,-309.29654756,0.00032017,2]
[379162278,1755169841024,-162.260136,0.00032185,15]
[379162279,1755169841033,-1903.0,0.00032191,3]
[379162280,1755169841043,-5340.25393092,0.00032197,2]
[379162281,1755169841052,-1193.47,0.000322,30]
[379162282,1755169841062,-5340.25393092,0.00032231,2]
[379162283,1755169841072,-10044.4809612,0.00032231,2]
[379162284,1755169841081,-6790.60966108,0.00032241,2]
[379162285,1755169841091,-600.0,0.00032294,2]
[379162286,1755169841101,-224.39936185,0.00032294,2]
[379162287,1755169841110,-1903.0,0.00032465,3]
[379162288,1755169841120,-3422.753,0.00032484,32]
[379162289,1755169841132,-175.432,0.00032484,32]
[379162290,1755169841149,-391.7,0.00032503,4]
[379162291,1755169841168,-5340.25393092,0.00032627,2]
[379162292,1755169841187,-9879.50396455,0.00032719,2]
[379162302,1755169841943,-164.97699665,0.00032719,2]
[379162303,1755169841952,-5340.25393092,0.00032729,2]
[379162304,1755169841961,-5340.25393092,0.00032739,2]
[379162305,1755169841971,-10044.4809612,0.00032739,2]
[379162306,1755169841980,-1903.0,0.00032739,3]
[379162307,1755169841990,-169.7711085,0.00032739,2]
[379162308,1755169842003,-1843.89178041,0.00032747,2]
[379162309,1755169842013,-13488.36992395,0.00032749,2]
[379162310,1755169842023,-150.0,0.00032767,2]
[379162311,1755169842034,-600.0,0.00032842,2]
[379162312,1755169842043,-5340.25393092,0.00032856,2]
[379162313,1755169842053,-200.0,0.00032874,2]
[379162314,1755169842063,-150.0,0.00032876,2]
[379162315,1755169842073,-500.0,0.00032877,7]
[379162316,1755169842082,-376.91032594,0.00032877,7]
[379162317,1755169842092,-500.0,0.00032877,7]
[379162318,1755169842103,-500.0,0.00032877,7]
[379162319,1755169842112,-470.81511085,0.00032877,7]
[379162320,1755169842125,-29.18488915,0.00032877,7]
[379162321,1755169842134,-158.25922737,0.00032877,7]
[379162322,1755169842143,-244.07221714,0.00032916,2]
[379162323,1755169842153,-52.08678634,0.00033013,3]
[379162324,1755169842272,-1850.91321366,0.00033013,3]
[379162325,1755169842284,-71.21512011,0.00033065,2]
[379162326,1755169842296,-215.04241851,0.00033065,2]
[379162327,1755169842305,-4630.89758149,0.00033074,2]
[379162328,1755169842338,-4830.0,0.00033074,2]
[379162332,1755169844686,-151.0,0.0003189,2]
[379162333,1755169844696,-583.58337971,0.00033074,2]
[379162334,1755169844706,-5340.25393092,0.00033084,2]
[379162335,1755169844716,-149.74967927,0.00033094,2]
[379162336,1755169844727,-6640.85998181,0.00033094,2]
[379162337,1755169844737,-507.0,0.00033144,8]
[379162338,1755169844746,-269.31,0.00033165,2]
[379162339,1755169844756,-328.44286011,0.00033215,2]
[379162340,1755169844766,-1903.0,0.00033287,3]
[379162341,1755169844775,-370.62818159,0.00033364,2]
[379162342,1755169844785,-346.92554585,0.00033386,2]
[379162343,1755169844794,-160.0,0.00033386,2]
[379162344,1755169844804,-320.74051982,0.00033386,2]
[379162345,1755169844814,-124.6226006,0.00033388,2]
[379162346,1755169844917,-274.78062376,0.00033388,2]
[379162347,1755169844936,-1091.90124796,0.00033388,2]
[379162348,1755169844946,-600.0,0.0003339,2]
[379162349,1755169844956,-1193.47,0.000334,30]
[379162350,1755169844966,-500.0,0.00033473,5]
[379162351,1755169844975,-500.0,0.00033473,5]
[379162352,1755169844984,-500.0,0.00033473,5]
[379162353,1755169844993,-7872.94054893,0.0003349,2]
[379162354,1755169845005,-5814.32629962,0.0003349,2]
[379162355,1755169845043,-359.6084896,0.0003349,2]
[379162407,1755169846955,-393.6869503,0.00027137,2]
[379162410,1755169847066,-115.3130497,0.00027137,2]